[Event "Titled Tuesday Blitz March 29 Early 2022"]
[White "Vysochin, Spartak"]
[Black "Mortazavi, Ali"]
[WhiteFideId "14103516"]
[BlackFideId "401323"]
[WhiteElo "2689"]
[BlackElo "2535"]
[Result "0-1"]
[Round "07"]
[TimeControl "180+1"]
[Date "2022.03.30"]
[WhiteClock "0:00:04"]
[BlackClock "0:00:03"]

1. e4 {[%clk 0:03:00]}  c6 {[%clk 0:02:57]} 2. d4 {[%clk 0:02:59]}  d5 {[%clk 0:02:58]} 3. e5 {[%clk 0:02:59]}  Bf5 {[%clk 0:02:57]} 4. Bd3 {[%clk 0:02:58]}  Bxd3 {[%clk 0:02:57]} 5. Qxd3 {[%clk 0:02:58]}  e6 {[%clk 0:02:57]} 6. Ne2 {[%clk 0:02:52]}  c5 {[%clk 0:02:58]} 7. c3 {[%clk 0:02:51]}  Nc6 {[%clk 0:02:58]} 8. O-O {[%clk 0:02:50]}  Qb6 {[%clk 0:02:58]} 9. dxc5 {[%clk 0:02:43]}  Bxc5 {[%clk 0:02:57]} 10. Qg3 {[%clk 0:02:42]}  g6 {[%clk 0:02:55]} 11. Nd2 {[%clk 0:02:38]}  Nge7 {[%clk 0:02:46]} 12. Nf3 {[%clk 0:02:28]}  Nf5 {[%clk 0:02:45]} 13. Qf4 {[%clk 0:02:28]}  h5 {[%clk 0:02:45]} 14. h3 {[%clk 0:02:11]}  Be7 {[%clk 0:02:27]} 15. Rb1 {[%clk 0:01:48]}  Qa6 {[%clk 0:02:11]} 16. Ned4 {[%clk 0:01:42]}  Ncxd4 {[%clk 0:02:03]} 17. Nxd4 {[%clk 0:01:35]}  Qd3 {[%clk 0:01:49]} 18. Nxf5 {[%clk 0:01:27]}  gxf5 {[%clk 0:01:30]} 19. Be3 {[%clk 0:01:20]}  Rg8 {[%clk 0:01:18]} 20. Qa4+ {[%clk 0:01:14]}  b5 {[%clk 0:01:17]} 21. Qa6 {[%clk 0:01:13]}  Rd8 {[%clk 0:01:00]} 22. Rbe1 {[%clk 0:01:08]}  f4 {[%clk 0:00:34]} 23. Qc6+ {[%clk 0:00:51]}  Rd7 {[%clk 0:00:34]} 24. Bxf4 {[%clk 0:00:49]}  Qxh3 {[%clk 0:00:33]} 25. Bg3 {[%clk 0:00:48]}  Qg4 {[%clk 0:00:33]} 26. Qc8+ {[%clk 0:00:38]}  Bd8 {[%clk 0:00:33]} 27. Rd1 {[%clk 0:00:38]}  Rc7 {[%clk 0:00:21]} 28. Qb8 {[%clk 0:00:36]}  Rc4 {[%clk 0:00:17]} 29. Qxb5+ {[%clk 0:00:22]}  Kf8 {[%clk 0:00:18]} 30. Rd4 {[%clk 0:00:22]}  Rxd4 {[%clk 0:00:17]} 31. cxd4 {[%clk 0:00:22]}  h4 {[%clk 0:00:16]} 32. Qd7 {[%clk 0:00:12]}  Kg7 {[%clk 0:00:14]} 33. Qxa7 {[%clk 0:00:10]}  hxg3 {[%clk 0:00:05]} 34. fxg3 {[%clk 0:00:10]}  Qg6 {[%clk 0:00:06]} 35. Qd7 {[%clk 0:00:08]}  Bg5 {[%clk 0:00:06]} 36. Rf3 {[%clk 0:00:08]}  Qb1+ {[%clk 0:00:06]} 37. Kf2 {[%clk 0:00:08]}  Qxb2+ {[%clk 0:00:06]} 38. Kg1 {[%clk 0:00:08]}  Qxd4+ {[%clk 0:00:06]} 39. Kf1 {[%clk 0:00:08]}  Qd1+ {[%clk 0:00:06]} 40. Kf2 {[%clk 0:00:08]}  Qd4+ {[%clk 0:00:05]} 41. Kf1 {[%clk 0:00:08]}  Qa1+ {[%clk 0:00:05]} 42. Kf2 {[%clk 0:00:08]}  Qxa2+ {[%clk 0:00:06]} 43. Kf1 {[%clk 0:00:08]}  Qb1+ {[%clk 0:00:06]} 44. Kf2 {[%clk 0:00:09]}  Qc2+ {[%clk 0:00:06]} 45. Kf1 {[%clk 0:00:09]}  Qg6 {[%clk 0:00:06]} 46. g4 {[%clk 0:00:09]}  Ra8 {[%clk 0:00:05]} 47. g3 {[%clk 0:00:07]}  Ra2 {[%clk 0:00:05]} 48. Rf2 {[%clk 0:00:07]}  Qb1+ {[%clk 0:00:04]} 49. Kg2 {[%clk 0:00:06]}  Qe4+ {[%clk 0:00:04]} 50. Kh3 {[%clk 0:00:05]}  Qh7+ {[%clk 0:00:04]} 51. Kg2 {[%clk 0:00:04]}  Rxf2+ {[%clk 0:00:04]} 52. Kxf2 {[%clk 0:00:05]}  Qe4 {[%clk 0:00:04]} 53. Kg1 {[%clk 0:00:04]}  Qxe5 {[%clk 0:00:04]} 54. Kh2 {[%clk 0:00:04]}  Bh4 {[%clk 0:00:03]} 0-1


[Site "https://www.chess.com"]

[Event "Titled Tuesday Blitz March 29 Early 2022"]
[White "Zemlyanskii, Ivan"]
[Black "Buscar, Michael"]
[WhiteFideId "24249971"]
[BlackFideId "2603616"]
[WhiteElo "1759"]
[BlackElo "2010"]
[Result "0-1"]
[Round "07"]
[TimeControl "180+1"]
[Date "2022.03.30"]
[WhiteClock "0:00:22"]
[BlackClock "0:00:32"]

1. d4 {[%clk 0:03:00]}  d5 {[%clk 0:02:58]} 2. c4 {[%clk 0:03:01]}  e6 {[%clk 0:02:58]} 3. Nf3 {[%clk 0:03:00]}  Nf6 {[%clk 0:02:58]} 4. e3 {[%clk 0:03:00]}  Be7 {[%clk 0:02:59]} 5. b3 {[%clk 0:03:00]}  O-O {[%clk 0:02:59]} 6. Bd3 {[%clk 0:03:00]}  c5 {[%clk 0:02:55]} 7. O-O {[%clk 0:02:59]}  Nc6 {[%clk 0:02:55]} 8. Bb2 {[%clk 0:02:59]}  cxd4 {[%clk 0:02:53]} 9. exd4 {[%clk 0:02:59]}  dxc4 {[%clk 0:02:53]} 10. bxc4 {[%clk 0:02:59]}  b6 {[%clk 0:02:52]} 11. Nc3 {[%clk 0:02:59]}  Bb7 {[%clk 0:02:52]} 12. Re1 {[%clk 0:02:59]}  Rc8 {[%clk 0:02:51]} 13. d5 {[%clk 0:02:58]}  Nb4 {[%clk 0:02:49]} 14. Bb1 {[%clk 0:02:47]}  exd5 {[%clk 0:02:44]} 15. a3 {[%clk 0:02:46]}  d4 {[%clk 0:02:36]} 16. Nxd4 {[%clk 0:02:31]}  Rxc4 {[%clk 0:02:31]} 17. Nf5 {[%clk 0:02:25]}  Nbd5 {[%clk 0:02:00]} 18. Nxd5 {[%clk 0:02:23]}  Nxd5 {[%clk 0:01:57]} 19. Bxg7 {[%clk 0:02:08]}  Bf6 {[%clk 0:01:57]} 20. Bxf8 {[%clk 0:02:00]}  Bxa1 {[%clk 0:01:48]} 21. Ba2 {[%clk 0:01:58]}  Qg5 {[%clk 0:01:44]} 22. Bxc4 {[%clk 0:01:39]}  Ne3 {[%clk 0:01:35]} 23. Ne7+ {[%clk 0:01:39]}  Kxf8 {[%clk 0:01:33]} 24. Qd8+ {[%clk 0:01:37]}  Kg7 {[%clk 0:01:32]} 25. Qg8+ {[%clk 0:01:32]}  Kf6 {[%clk 0:01:31]} 26. Qxf7+ {[%clk 0:01:30]}  Ke5 {[%clk 0:01:30]} 27. Rxe3+ {[%clk 0:01:31]}  Kd4 {[%clk 0:01:30]} 28. Nf5+ {[%clk 0:01:28]}  Kc5 {[%clk 0:01:29]} 29. Qd5+ {[%clk 0:01:28]}  Bxd5 {[%clk 0:01:29]} 30. Bxd5 {[%clk 0:01:12]}  Kxd5 {[%clk 0:01:18]} 31. Ne7+ {[%clk 0:01:08]}  Kc5 {[%clk 0:01:17]} 32. h4 {[%clk 0:01:02]}  Qxh4 {[%clk 0:01:09]} 33. Nf5 {[%clk 0:00:59]}  Qg4 {[%clk 0:01:03]} 34. Nh6 {[%clk 0:00:51]}  Qd1+ {[%clk 0:01:00]} 35. Kh2 {[%clk 0:00:48]}  Qh5+ {[%clk 0:00:58]} 36. Rh3 {[%clk 0:00:48]}  Be5+ {[%clk 0:00:59]} 37. g3 {[%clk 0:00:47]}  Qf3 {[%clk 0:00:57]} 38. Kg1 {[%clk 0:00:44]}  Qxa3 {[%clk 0:00:56]} 39. Rh5 {[%clk 0:00:44]}  Qa1+ {[%clk 0:00:51]} 40. Kg2 {[%clk 0:00:43]}  Kb4 {[%clk 0:00:51]} 41. Ng4 {[%clk 0:00:41]}  Bd4 {[%clk 0:00:50]} 42. Rxh7 {[%clk 0:00:37]}  a5 {[%clk 0:00:51]} 43. Rh4 {[%clk 0:00:28]}  Kb3 {[%clk 0:00:48]} 44. Rh1 {[%clk 0:00:21]}  Qb2 {[%clk 0:00:46]} 45. Rd1 {[%clk 0:00:20]}  a4 {[%clk 0:00:46]} 46. Kh3 {[%clk 0:00:17]}  a3 {[%clk 0:00:41]} 47. f4 {[%clk 0:00:17]}  a2 {[%clk 0:00:41]} 48. f5 {[%clk 0:00:17]}  a1=Q {[%clk 0:00:41]} 49. Rxa1 {[%clk 0:00:17]}  Qxa1 {[%clk 0:00:41]} 50. Kh4 {[%clk 0:00:18]}  Ka4 {[%clk 0:00:36]} 51. Kg5 {[%clk 0:00:18]}  b5 {[%clk 0:00:37]} 52. Kg6 {[%clk 0:00:16]}  b4 {[%clk 0:00:37]} 53. Nh6 {[%clk 0:00:16]}  b3 {[%clk 0:00:36]} 54. g4 {[%clk 0:00:17]}  b2 {[%clk 0:00:36]} 55. g5 {[%clk 0:00:18]}  b1=Q {[%clk 0:00:36]} 56. Kf7 {[%clk 0:00:18]}  Be3 {[%clk 0:00:35]} 57. Kg6 {[%clk 0:00:19]}  Qc1 {[%clk 0:00:34]} 58. Nf7 {[%clk 0:00:18]}  Bxg5 {[%clk 0:00:32]} 59. Nxg5 {[%clk 0:00:19]}  Qe5 {[%clk 0:00:31]} 60. Nf7 {[%clk 0:00:19]}  Qc6+ {[%clk 0:00:31]} 61. Kg5 {[%clk 0:00:19]}  Qef6+ {[%clk 0:00:31]} 62. Kg4 {[%clk 0:00:19]}  Qxf7 {[%clk 0:00:31]} 63. Kf4 {[%clk 0:00:19]}  Qcf6 {[%clk 0:00:31]} 64. Kg3 {[%clk 0:00:20]}  Qxf5 {[%clk 0:00:32]} 65. Kh4 {[%clk 0:00:21]}  Q7h5+ {[%clk 0:00:32]} 66. Kg3 {[%clk 0:00:22]}  Qff3# {[%clk 0:00:32]} 0-1


[Site "https://www.chess.com"]

[Event "Titled Tuesday Blitz March 29 Early 2022"]
[White "Zhigalko, Sergei"]
[Black "Hebden, Mark L"]
[WhiteFideId "13502956"]
[BlackFideId "400084"]
[WhiteElo "2662"]
[BlackElo "2457"]
[Result "0-1"]
[Round "07"]
[TimeControl "180+1"]
[Date "2022.03.29"]
[WhiteClock "0:00:08"]
[BlackClock "0:00:08"]

1. e4 {[%clk 0:03:00]}  e5 {[%clk 0:02:59]} 2. Nf3 {[%clk 0:03:00]}  Nc6 {[%clk 0:02:59]} 3. Bc4 {[%clk 0:03:00]}  Nf6 {[%clk 0:02:59]} 4. d3 {[%clk 0:03:00]}  Be7 {[%clk 0:02:58]} 5. O-O {[%clk 0:03:00]}  O-O {[%clk 0:02:59]} 6. Nbd2 {[%clk 0:03:01]}  d6 {[%clk 0:02:58]} 7. c3 {[%clk 0:03:01]}  Na5 {[%clk 0:02:57]} 8. Bb5 {[%clk 0:03:01]}  a6 {[%clk 0:02:57]} 9. Ba4 {[%clk 0:03:02]}  b5 {[%clk 0:02:58]} 10. Bc2 {[%clk 0:03:02]}  c5 {[%clk 0:02:58]} 11. Re1 {[%clk 0:03:02]}  Re8 {[%clk 0:02:56]} 12. h3 {[%clk 0:02:55]}  Bb7 {[%clk 0:02:37]} 13. Nf1 {[%clk 0:02:49]}  h6 {[%clk 0:02:34]} 14. Ng3 {[%clk 0:02:48]}  Bf8 {[%clk 0:02:33]} 15. d4 {[%clk 0:02:45]}  cxd4 {[%clk 0:02:31]} 16. cxd4 {[%clk 0:02:45]}  exd4 {[%clk 0:02:30]} 17. Nxd4 {[%clk 0:02:41]}  d5 {[%clk 0:02:28]} 18. e5 {[%clk 0:02:39]}  Ne4 {[%clk 0:02:27]} 19. Bf4 {[%clk 0:02:21]}  Nc4 {[%clk 0:02:18]} 20. Nxe4 {[%clk 0:02:16]}  dxe4 {[%clk 0:02:06]} 21. Bxe4 {[%clk 0:02:16]}  Bxe4 {[%clk 0:02:01]} 22. Rxe4 {[%clk 0:02:16]}  Qd5 {[%clk 0:01:53]} 23. Qf3 {[%clk 0:01:58]}  Nxb2 {[%clk 0:01:47]} 24. Bxh6 {[%clk 0:01:38]}  Nc4 {[%clk 0:01:40]} 25. Bf4 {[%clk 0:01:25]}  Rad8 {[%clk 0:01:28]} 26. Rae1 {[%clk 0:01:14]}  Bc5 {[%clk 0:01:17]} 27. Nf5 {[%clk 0:01:03]}  Re6 {[%clk 0:01:14]} 28. Bg3 {[%clk 0:00:35]}  Nd2 {[%clk 0:01:06]} 29. Qg4 {[%clk 0:00:20]}  Rg6 {[%clk 0:01:05]} 30. Qh4 {[%clk 0:00:18]}  Nxe4 {[%clk 0:01:01]} 31. Rxe4 {[%clk 0:00:19]}  Re8 {[%clk 0:00:54]} 32. Kh2 {[%clk 0:00:13]}  Qxa2 {[%clk 0:00:51]} 33. Qh5 {[%clk 0:00:12]}  Bxf2 {[%clk 0:00:42]} 34. Bxf2 {[%clk 0:00:13]}  Qxf2 {[%clk 0:00:39]} 35. Rg4 {[%clk 0:00:05]}  Qe2 {[%clk 0:00:20]} 36. Nd6 {[%clk 0:00:01]}  Qxe5+ {[%clk 0:00:17]} 37. Qxe5 {[%clk 0:00:01]}  Rxe5 {[%clk 0:00:17]} 38. Rd4 {[%clk 0:00:02]}  Re2 {[%clk 0:00:14]} 39. h4 {[%clk 0:00:01]}  Rgxg2+ {[%clk 0:00:13]} 40. Kh1 {[%clk 0:00:02]}  Rh2+ {[%clk 0:00:12]} 41. Kg1 {[%clk 0:00:02]}  Reg2+ {[%clk 0:00:12]} 42. Kf1 {[%clk 0:00:03]}  Rd2 {[%clk 0:00:12]} 43. Rxd2 {[%clk 0:00:02]}  Rxd2 {[%clk 0:00:10]} 44. Nf5 {[%clk 0:00:03]}  b4 {[%clk 0:00:09]} 45. Ne3 {[%clk 0:00:03]}  Kh7 {[%clk 0:00:09]} 46. Nc4 {[%clk 0:00:03]}  Rh2 {[%clk 0:00:10]} 47. h5 {[%clk 0:00:03]}  Rxh5 {[%clk 0:00:10]} 48. Nd6 {[%clk 0:00:04]}  Rb5 {[%clk 0:00:10]} 49. Nc4 {[%clk 0:00:04]}  b3 {[%clk 0:00:09]} 50. Nb2 {[%clk 0:00:05]}  a5 {[%clk 0:00:10]} 51. Ke2 {[%clk 0:00:06]}  a4 {[%clk 0:00:10]} 52. Nc4 {[%clk 0:00:07]}  b2 {[%clk 0:00:10]} 53. Na3 {[%clk 0:00:08]}  b1=Q {[%clk 0:00:10]} 54. Nxb1 {[%clk 0:00:08]}  Rxb1 {[%clk 0:00:08]} 0-1


[Site "https://www.chess.com"]

[Event "Titled Tuesday Blitz March 29 Early 2022"]
[White "parintele_chess"]
[Black "Yanayt, Eugene"]
[BlackFideId "2020165"]
[WhiteElo "2246"]
[BlackElo "2046"]
[Result "1/2-1/2"]
[Round "07"]
[TimeControl "180+1"]
[Date "2022.03.30"]
[WhiteClock "0:02:38"]
[BlackClock "0:02:17"]

1. d4 {[%clk 0:02:59]}  Nf6 {[%clk 0:02:52]} 2. Bf4 {[%clk 0:02:59]}  d6 {[%clk 0:02:51]} 3. Nc3 {[%clk 0:02:58]}  c5 {[%clk 0:02:49]} 4. e3 {[%clk 0:02:56]}  g6 {[%clk 0:02:48]} 5. Bd3 {[%clk 0:02:54]}  Bg7 {[%clk 0:02:47]} 6. h4 {[%clk 0:02:54]}  Nc6 {[%clk 0:02:43]} 7. h5 {[%clk 0:02:53]}  cxd4 {[%clk 0:02:36]} 8. exd4 {[%clk 0:02:50]}  Nxd4 {[%clk 0:02:29]} 9. hxg6 {[%clk 0:02:49]}  fxg6 {[%clk 0:02:20]} 10. Bxg6+ {[%clk 0:02:47]}  hxg6 {[%clk 0:02:20]} 11. Rxh8+ {[%clk 0:02:47]}  Bxh8 {[%clk 0:02:20]} 12. Qxd4 {[%clk 0:02:48]}  e5 {[%clk 0:02:20]} 13. Qd3 {[%clk 0:02:40]}  Bf5 {[%clk 0:02:19]} 14. Qb5+ {[%clk 0:02:39]}  Bd7 {[%clk 0:02:16]} 15. Qd3 {[%clk 0:02:38]}  Bf5 {[%clk 0:02:16]} 16. Qb5+ {[%clk 0:02:38]}  Bd7 {[%clk 0:02:16]} 17. Qd3 {[%clk 0:02:38]}  Bf5 {[%clk 0:02:17]} 1/2-1/2


[Site "https://www.chess.com"]

[Event "Titled Tuesday Blitz March 29 Early 2022"]
[White "Abdusattorov, Nodirbek"]
[Black "Murzin, Volodar"]
[WhiteFideId "14204118"]
[BlackFideId "44155573"]
[WhiteElo "2663"]
[BlackElo "2585"]
[Result "1/2-1/2"]
[Round "08"]
[TimeControl "180+1"]
[Date "2022.03.29"]
[WhiteClock "0:00:21"]
[BlackClock "0:00:41"]

1. c4 {[%clk 0:03:00]}  c6 {[%clk 0:02:58]} 2. Nc3 {[%clk 0:02:59]}  d5 {[%clk 0:02:56]} 3. cxd5 {[%clk 0:02:58]}  cxd5 {[%clk 0:02:54]} 4. d4 {[%clk 0:02:59]}  e6 {[%clk 0:02:53]} 5. Bf4 {[%clk 0:02:59]}  Bd6 {[%clk 0:02:52]} 6. Bg3 {[%clk 0:02:54]}  Ne7 {[%clk 0:02:52]} 7. e3 {[%clk 0:02:54]}  Nf5 {[%clk 0:02:53]} 8. Bxd6 {[%clk 0:02:53]}  Nxd6 {[%clk 0:02:48]} 9. Bd3 {[%clk 0:02:53]}  Nc6 {[%clk 0:02:49]} 10. Nf3 {[%clk 0:02:52]}  O-O {[%clk 0:02:49]} 11. O-O {[%clk 0:02:53]}  Bd7 {[%clk 0:02:44]} 12. Rc1 {[%clk 0:02:46]}  Rc8 {[%clk 0:02:43]} 13. Qb3 {[%clk 0:02:45]}  Qb6 {[%clk 0:02:22]} 14. Qa3 {[%clk 0:02:30]}  Nb4 {[%clk 0:02:16]} 15. Be2 {[%clk 0:02:24]}  Rfd8 {[%clk 0:01:49]} 16. Ne5 {[%clk 0:02:19]}  Be8 {[%clk 0:01:47]} 17. h3 {[%clk 0:01:55]}  f6 {[%clk 0:01:43]} 18. Nd3 {[%clk 0:01:55]}  Nxd3 {[%clk 0:01:35]} 19. Bxd3 {[%clk 0:01:56]}  Nc4 {[%clk 0:01:35]} 20. Bxc4 {[%clk 0:01:50]}  Rxc4 {[%clk 0:01:36]} 21. b3 {[%clk 0:01:30]}  Rc7 {[%clk 0:01:32]} 22. Ne2 {[%clk 0:01:19]}  Rdc8 {[%clk 0:01:25]} 23. Nf4 {[%clk 0:01:14]}  g5 {[%clk 0:01:15]} 24. Nd3 {[%clk 0:00:29]}  Bb5 {[%clk 0:01:13]} 25. Rxc7 {[%clk 0:00:24]}  Rxc7 {[%clk 0:01:12]} 26. Rd1 {[%clk 0:00:24]}  Bxd3 {[%clk 0:01:10]} 27. Rxd3 {[%clk 0:00:25]}  Rc2 {[%clk 0:01:03]} 28. Rd1 {[%clk 0:00:22]}  Kf7 {[%clk 0:00:58]} 29. Qa4 {[%clk 0:00:21]}  Ke7 {[%clk 0:00:49]} 30. Qa3+ {[%clk 0:00:21]}  Kf7 {[%clk 0:00:47]} 31. Qa4 {[%clk 0:00:21]}  Ke7 {[%clk 0:00:43]} 32. Qa3+ {[%clk 0:00:21]}  Kf7 {[%clk 0:00:41]} 1/2-1/2


[Site "https://www.chess.com"]

[Event "Titled Tuesday Blitz March 29 Early 2022"]
[White "Agasarov, Benik"]
[Black "Sarkar, Justin"]
[WhiteFideId "13314823"]
[BlackFideId "2010011"]
[WhiteElo "2533"]
[BlackElo "2038"]
[Result "0-1"]
[Round "08"]
[TimeControl "180+1"]
[Date "2022.03.30"]
[WhiteClock "0:00:21"]
[BlackClock "0:00:06"]

1. e4 {[%clk 0:03:00]}  c5 {[%clk 0:02:56]} 2. Nf3 {[%clk 0:03:01]}  d6 {[%clk 0:02:55]} 3. d4 {[%clk 0:02:58]}  cxd4 {[%clk 0:02:56]} 4. Nxd4 {[%clk 0:02:58]}  Nf6 {[%clk 0:02:56]} 5. Nc3 {[%clk 0:02:56]}  g6 {[%clk 0:02:55]} 6. Be3 {[%clk 0:02:46]}  Bg7 {[%clk 0:02:54]} 7. f3 {[%clk 0:02:46]}  Nc6 {[%clk 0:02:53]} 8. Qd2 {[%clk 0:02:44]}  Bd7 {[%clk 0:02:48]} 9. O-O-O {[%clk 0:02:41]}  Rc8 {[%clk 0:02:46]} 10. Bc4 {[%clk 0:02:41]}  Nxd4 {[%clk 0:01:30]} 11. Qxd4 {[%clk 0:02:38]}  O-O {[%clk 0:01:29]} 12. Qd3 {[%clk 0:02:33]}  Qa5 {[%clk 0:01:17]} 13. Bb3 {[%clk 0:02:30]}  b5 {[%clk 0:01:12]} 14. Bd4 {[%clk 0:02:28]}  b4 {[%clk 0:00:57]} 15. Nd5 {[%clk 0:02:28]}  Nxd5 {[%clk 0:00:52]} 16. Bxd5 {[%clk 0:02:16]}  Bb5 {[%clk 0:00:22]} 17. Qd2 {[%clk 0:02:03]}  Ba4 {[%clk 0:00:11]} 18. b3 {[%clk 0:01:45]}  Bb5 {[%clk 0:00:11]} 19. Kb1 {[%clk 0:01:42]}  e6 {[%clk 0:00:10]} 20. Bxg7 {[%clk 0:01:39]}  Kxg7 {[%clk 0:00:10]} 21. Qd4+ {[%clk 0:01:21]}  Kg8 {[%clk 0:00:10]} 22. Bc4 {[%clk 0:01:09]}  Bxc4 {[%clk 0:00:10]} 23. bxc4 {[%clk 0:01:10]}  Rc6 {[%clk 0:00:10]} 24. h4 {[%clk 0:01:09]}  Rfc8 {[%clk 0:00:09]} 25. h5 {[%clk 0:01:09]}  Rxc4 {[%clk 0:00:09]} 26. Qa1 {[%clk 0:00:59]}  Rxc2 {[%clk 0:00:07]} 27. hxg6 {[%clk 0:00:59]}  fxg6 {[%clk 0:00:05]} 28. Rxh7 {[%clk 0:00:59]}  e5 {[%clk 0:00:02]} 29. Rdh1 {[%clk 0:00:41]}  b3 {[%clk 0:00:02]} 30. Rh8+ {[%clk 0:00:38]}  Kf7 {[%clk 0:00:02]} 31. axb3 {[%clk 0:00:34]}  Rc1+ {[%clk 0:00:02]} 32. Rxc1 {[%clk 0:00:30]}  Rxc1+ {[%clk 0:00:03]} 33. Kxc1 {[%clk 0:00:30]}  Qxa1+ {[%clk 0:00:03]} 34. Kd2 {[%clk 0:00:30]}  Qb2+ {[%clk 0:00:04]} 35. Ke3 {[%clk 0:00:30]}  Qxb3+ {[%clk 0:00:04]} 36. Kf2 {[%clk 0:00:30]}  Qb2+ {[%clk 0:00:04]} 37. Kg3 {[%clk 0:00:29]}  a5 {[%clk 0:00:05]} 38. Rh7+ {[%clk 0:00:30]}  Kf6 {[%clk 0:00:04]} 39. Rd7 {[%clk 0:00:28]}  Qb4 {[%clk 0:00:04]} 40. Kg4 {[%clk 0:00:28]}  a4 {[%clk 0:00:04]} 41. g3 {[%clk 0:00:28]}  a3 {[%clk 0:00:04]} 42. Ra7 {[%clk 0:00:28]}  Qb3 {[%clk 0:00:04]} 43. Ra6 {[%clk 0:00:28]}  a2 {[%clk 0:00:04]} 44. Rxd6+ {[%clk 0:00:29]}  Qe6+ {[%clk 0:00:04]} 45. Rxe6+ {[%clk 0:00:29]}  Kxe6 {[%clk 0:00:04]} 46. Kg5 {[%clk 0:00:30]}  a1=Q {[%clk 0:00:04]} 47. Kxg6 {[%clk 0:00:30]}  Qg1 {[%clk 0:00:04]} 48. g4 {[%clk 0:00:27]}  Qg3 {[%clk 0:00:04]} 49. g5 {[%clk 0:00:22]}  Qxf3 {[%clk 0:00:05]} 50. Kh7 {[%clk 0:00:22]}  Kf7 {[%clk 0:00:04]} 51. g6+ {[%clk 0:00:21]}  Kf6 {[%clk 0:00:04]} 52. g7 {[%clk 0:00:21]}  Qh5+ {[%clk 0:00:05]} 53. Kg8 {[%clk 0:00:21]}  Qf7+ {[%clk 0:00:05]} 54. Kh7 {[%clk 0:00:21]}  Qxg7# {[%clk 0:00:06]} 0-1


[Site "https://www.chess.com"]

[Event "Titled Tuesday Blitz March 29 Early 2022"]
[White "Al-Tarboush, Ward"]
[Black "Heinemann, Josefine"]
[WhiteFideId "7601450"]
[BlackFideId "12900460"]
[WhiteElo "2276"]
[BlackElo "2300"]
[Result "0-1"]
[Round "08"]
[TimeControl "180+1"]
[Date "2022.03.30"]
[WhiteClock "0:02:35"]
[BlackClock "0:00:29"]

1. e4 {[%clk 0:03:00]}  c5 {[%clk 0:02:56]} 2. Nf3 {[%clk 0:03:01]}  d6 {[%clk 0:02:55]} 3. d4 {[%clk 0:03:01]}  cxd4 {[%clk 0:02:56]} 4. Nxd4 {[%clk 0:03:02]}  Nf6 {[%clk 0:02:56]} 5. Nc3 {[%clk 0:03:03]}  a6 {[%clk 0:02:56]} 6. h3 {[%clk 0:03:03]}  e5 {[%clk 0:02:52]} 7. Nde2 {[%clk 0:03:04]}  h5 {[%clk 0:02:50]} 8. Be3 {[%clk 0:03:03]}  Be6 {[%clk 0:02:34]} 9. Nd5 {[%clk 0:03:03]}  Bxd5 {[%clk 0:02:25]} 10. exd5 {[%clk 0:03:04]}  Nbd7 {[%clk 0:02:25]} 11. Nc3 {[%clk 0:03:04]}  g6 {[%clk 0:02:17]} 12. a4 {[%clk 0:03:04]}  Rc8 {[%clk 0:02:07]} 13. Be2 {[%clk 0:03:04]}  Qc7 {[%clk 0:02:05]} 14. O-O {[%clk 0:03:03]}  Bg7 {[%clk 0:01:51]} 15. a5 {[%clk 0:03:03]}  O-O {[%clk 0:01:50]} 16. Qd2 {[%clk 0:03:03]}  Nc5 {[%clk 0:01:38]} 17. Rfc1 {[%clk 0:03:01]}  Nce4 {[%clk 0:01:31]} 18. Nxe4 {[%clk 0:03:01]}  Nxe4 {[%clk 0:01:32]} 19. Qd3 {[%clk 0:03:01]}  f5 {[%clk 0:01:31]} 20. c4 {[%clk 0:02:59]}  Nc5 {[%clk 0:01:30]} 21. Qd1 {[%clk 0:02:58]}  f4 {[%clk 0:01:19]} 22. Bxc5 {[%clk 0:02:55]}  Qxc5 {[%clk 0:01:20]} 23. Bf3 {[%clk 0:02:52]}  e4 {[%clk 0:00:55]} 24. Bxe4 {[%clk 0:02:52]}  f3 {[%clk 0:00:54]} 25. Bxf3 {[%clk 0:02:51]}  Bxb2 {[%clk 0:00:52]} 26. Qc2 {[%clk 0:02:47]}  Bxa1 {[%clk 0:00:46]} 27. Rxa1 {[%clk 0:02:48]}  Rf6 {[%clk 0:00:45]} 28. Rb1 {[%clk 0:02:48]}  Rc7 {[%clk 0:00:44]} 29. Qe4 {[%clk 0:02:48]}  Qxc4 {[%clk 0:00:36]} 30. Qe8+ {[%clk 0:02:48]}  Kg7 {[%clk 0:00:36]} 31. Re1 {[%clk 0:02:45]}  Qf4 {[%clk 0:00:34]} 32. Qd8 {[%clk 0:02:40]}  Rff7 {[%clk 0:00:32]} 33. Re8 {[%clk 0:02:35]}  Rc1+ {[%clk 0:00:29]} 34. Bd1 {[%clk 0:02:35]}  Rxd1+ {[%clk 0:00:29]} 0-1


[Site "https://www.chess.com"]

[Event "Titled Tuesday Blitz March 29 Early 2022"]
[White "Ambartsumova, Karina"]
[Black "Aaditya Dhingra"]
[WhiteFideId "4166299"]
[BlackFideId "25678191"]
[WhiteElo "2262"]
[BlackElo "1849"]
[Result "0-1"]
[Round "08"]
[TimeControl "180+1"]
[Date "2022.03.30"]
[WhiteClock "0:00:08"]
[BlackClock "0:00:22"]

1. e4 {[%clk 0:03:00]}  e5 {[%clk 0:02:58]} 2. Nf3 {[%clk 0:02:59]}  Nc6 {[%clk 0:02:58]} 3. Bc4 {[%clk 0:02:59]}  Nf6 {[%clk 0:02:57]} 4. O-O {[%clk 0:02:57]}  Be7 {[%clk 0:02:56]} 5. d4 {[%clk 0:02:54]}  d6 {[%clk 0:02:53]} 6. Nc3 {[%clk 0:02:50]}  Bg4 {[%clk 0:02:42]} 7. Bb5 {[%clk 0:02:31]}  Bxf3 {[%clk 0:02:38]} 8. Qxf3 {[%clk 0:02:32]}  exd4 {[%clk 0:02:36]} 9. Ne2 {[%clk 0:02:29]}  O-O {[%clk 0:02:33]} 10. Bxc6 {[%clk 0:02:28]}  bxc6 {[%clk 0:02:33]} 11. Nxd4 {[%clk 0:02:29]}  c5 {[%clk 0:02:26]} 12. Nf5 {[%clk 0:02:22]}  Nd7 {[%clk 0:02:12]} 13. Qg3 {[%clk 0:01:42]}  g6 {[%clk 0:01:54]} 14. Bh6 {[%clk 0:01:36]}  Re8 {[%clk 0:01:52]} 15. Rae1 {[%clk 0:01:25]}  Bf6 {[%clk 0:01:48]} 16. c3 {[%clk 0:01:23]}  Rb8 {[%clk 0:01:45]} 17. b3 {[%clk 0:01:15]}  Kh8 {[%clk 0:01:44]} 18. Ne3 {[%clk 0:01:01]}  Bxc3 {[%clk 0:01:42]} 19. Rc1 {[%clk 0:00:46]}  Bd4 {[%clk 0:01:41]} 20. f3 {[%clk 0:00:32]}  Nf6 {[%clk 0:01:16]} 21. Kh1 {[%clk 0:00:28]}  Nh5 {[%clk 0:01:14]} 22. Qe1 {[%clk 0:00:24]}  c6 {[%clk 0:01:02]} 23. Qd2 {[%clk 0:00:22]}  Qh4 {[%clk 0:00:57]} 24. Kg1 {[%clk 0:00:20]}  Ng3 {[%clk 0:00:49]} 25. hxg3 {[%clk 0:00:19]}  Qxh6 {[%clk 0:00:48]} 26. Rfe1 {[%clk 0:00:18]}  d5 {[%clk 0:00:46]} 27. Qd3 {[%clk 0:00:17]}  dxe4 {[%clk 0:00:46]} 28. fxe4 {[%clk 0:00:18]}  f5 {[%clk 0:00:45]} 29. Rxc5 {[%clk 0:00:14]}  Rxe4 {[%clk 0:00:31]} 30. Rc3 {[%clk 0:00:08]}  Rbe8 {[%clk 0:00:22]} 0-1


[Site "https://www.chess.com"]